[Event "*** Titled Tuesday Blitz"]
[Site "Chess.com"]
[Date "2020.04.14"]
[Round "3"]
[White "hakki1"]
[Black "RiskyDecision"]
[Result "1-0"]
[WhiteElo "2396"]
[BlackElo "2593"]
[TimeControl "180+1"]
[EndTime "10:29:17 PDT"]
[Termination "hakki1 won on time"]

1. d4 {[%clk 0:02:59.4]} 1... f5 {[%clk 0:02:59.6]} 2. c4 {[%clk 0:02:57.9]}
2... Nf6 {[%clk 0:02:59.6]} 3. g3 {[%clk 0:02:58.2]} 3... g6 {[%clk 0:02:59.5]}
4. Bg2 {[%clk 0:02:58.4]} 4... Bg7 {[%clk 0:02:59.8]} 5. Nh3 {[%clk 0:02:58.8]}
5... d6 {[%clk 0:02:54.6]} 6. Nc3 {[%clk 0:02:57.7]} 6... e5 {[%clk 0:02:46.5]}
7. dxe5 {[%clk 0:02:51.4]} 7... dxe5 {[%clk 0:02:47.4]} 8. Qxd8+ {[%clk
0:02:51.3]} 8... Kxd8 {[%clk 0:02:48.3]} 9. Bg5 {[%clk 0:02:49.4]} 9... c6
{[%clk 0:02:43]} 10. O-O-O+ {[%clk 0:02:47]} 10... Kc7 {[%clk 0:02:39.4]} 11. f4
{[%clk 0:02:43.1]} 11... e4 {[%clk 0:02:23.9]} 12. Nf2 {[%clk 0:02:26.3]} 12...
Be6 {[%clk 0:02:21.6]} 13. b3 {[%clk 0:02:19.5]} 13... Nbd7 {[%clk 0:02:11.8]}
14. Kc2 {[%clk 0:02:15.6]} 14... a5 {[%clk 0:02:11.4]} 15. g4 {[%clk 0:01:59.8]}
15... Nc5 {[%clk 0:02:01.8]} 16. gxf5 {[%clk 0:01:58.9]} 16... gxf5 {[%clk
0:02:01.9]} 17. Rhg1 {[%clk 0:01:54.5]} 17... Rhg8 {[%clk 0:02:00.3]} 18. Bh3
{[%clk 0:01:50.7]} 18... Bh8 {[%clk 0:01:52.6]} 19. Bh4 {[%clk 0:01:40.9]} 19...
Rae8 {[%clk 0:01:45.6]} 20. e3 {[%clk 0:01:37.5]} 20... Rg6 {[%clk 0:01:34.1]}
21. Ne2 {[%clk 0:01:35.7]} 21... Bd7 {[%clk 0:01:09.6]} 22. Ng3 {[%clk 0:01:31]}
22... Ng4 {[%clk 0:01:02.7]} 23. Bxg4 {[%clk 0:01:23.1]} 23... fxg4 {[%clk
0:01:02.5]} 24. Bg5 {[%clk 0:01:18.1]} 24... Rf8 {[%clk 0:00:55.7]} 25. Rd2
{[%clk 0:01:17.4]} 25... b5 {[%clk 0:00:47.5]} 26. Rgd1 {[%clk 0:01:13.5]} 26...
bxc4 {[%clk 0:00:43.3]} 27. bxc4 {[%clk 0:01:13.3]} 27... Be6 {[%clk 0:00:39.2]}
28. Bd8+ {[%clk 0:01:05.7]} 28... Kb7 {[%clk 0:00:34.4]} 29. Rb1+ {[%clk
0:01:04.5]} 29... Kc8 {[%clk 0:00:32]} 30. Be7 {[%clk 0:00:57.4]} 30... Nd7
{[%clk 0:00:12.2]} 31. Bxf8 {[%clk 0:00:55.7]} 31... Nxf8 {[%clk 0:00:13.1]} 32.
Rd6 {[%clk 0:00:54.1]} 32... Kc7 {[%clk 0:00:11.8]} 33. c5 {[%clk 0:00:54.2]}
33... Nd7 {[%clk 0:00:10.6]} 34. f5 {[%clk 0:00:53]} 34... Bxf5 {[%clk
0:00:10.1]} 35. Nxf5 {[%clk 0:00:52.9]} 35... Rg5 {[%clk 0:00:10.3]} 36. Rxd7+
{[%clk 0:00:47.9]} 36... Kxd7 {[%clk 0:00:10]} 37. Ng3 {[%clk 0:00:47.1]} 37...
Rxc5+ {[%clk 0:00:08.9]} 38. Kd1 {[%clk 0:00:47.3]} 38... Rd5+ {[%clk
0:00:08.1]} 39. Ke2 {[%clk 0:00:46.7]} 39... h5 {[%clk 0:00:07.7]} 40. Rb7+
{[%clk 0:00:45.5]} 40... Ke6 {[%clk 0:00:07.1]} 41. Rh7 {[%clk 0:00:45]} 41...
Be5 {[%clk 0:00:06.6]} 42. Rxh5 {[%clk 0:00:43.5]} 42... Rb5 {[%clk 0:00:05.8]}
43. Rh6+ {[%clk 0:00:43.1]} 43... Kd5 {[%clk 0:00:05.3]} 44. Ngxe4 {[%clk
0:00:42.2]} 44... Rb2+ {[%clk 0:00:05.1]} 45. Kf1 {[%clk 0:00:42.3]} 45... Rxa2
{[%clk 0:00:05.2]} 46. Nf6+ {[%clk 0:00:38.4]} 46... Kc4 {[%clk 0:00:04.4]} 47.
N6xg4 {[%clk 0:00:38.4]} 47... Bc3 {[%clk 0:00:03.8]} 48. Rxc6+ {[%clk
0:00:38.4]} 48... Kb3 {[%clk 0:00:04.2]} 49. Ne4 {[%clk 0:00:36]} 49... Bb4
{[%clk 0:00:03.9]} 50. Ngf2 {[%clk 0:00:35.7]} 50... a4 {[%clk 0:00:03.9]} 51.
h4 {[%clk 0:00:35.4]} 51... a3 {[%clk 0:00:04.1]} 52. Nd3 {[%clk 0:00:33.4]}
52... Ra1+ {[%clk 0:00:03.7]} 53. Kf2 {[%clk 0:00:33.2]} 53... Rb1 {[%clk
0:00:03.8]} 54. Nd2+ {[%clk 0:00:32]} 54... Bxd2 {[%clk 0:00:02.8]} 55. Rb6+
{[%clk 0:00:30.3]} 55... Kc2 {[%clk 0:00:02.8]} 56. Rd6 {[%clk 0:00:16.7]} 56...
Bc3 {[%clk 0:00:02.5]} 57. Ra6 {[%clk 0:00:16.3]} 57... Ra1 {[%clk 0:00:01.6]}
58. Nb4+ {[%clk 0:00:15]} 58... Kb3 {[%clk 0:00:01.1]} 59. Nd5 {[%clk 0:00:15]}
1-0

[Event "*** Titled Tuesday Blitz"]
[Site "Chess.com"]
[Date "2020.04.14"]
[Round "3"]
[White "Crazy_girl99"]
[Black "katchesskat"]
[Result "1-0"]
[WhiteElo "2512"]
[BlackElo "2156"]
[TimeControl "180+1"]
[EndTime "10:29:18 PDT"]
[Termination "Crazy_girl99 won by checkmate"]

1. Nf3 {[%clk 0:03:00.9]} 1... c5 {[%clk 0:02:59.8]} 2. e4 {[%clk 0:02:59.6]}
2... e6 {[%clk 0:02:59]} 3. d4 {[%clk 0:02:56.3]} 3... cxd4 {[%clk 0:02:59.9]}
4. Nxd4 {[%clk 0:02:56.8]} 4... a6 {[%clk 0:03:00.2]} 5. c4 {[%clk 0:02:55.6]}
5... Qc7 {[%clk 0:02:59.2]} 6. Nc3 {[%clk 0:02:54.8]} 6... Nf6 {[%clk
0:02:57.6]} 7. a3 {[%clk 0:02:51.9]} 7... b6 {[%clk 0:02:55.3]} 8. Be2 {[%clk
0:02:51.7]} 8... Bb7 {[%clk 0:02:55]} 9. f3 {[%clk 0:02:52.1]} 9... h6 {[%clk
0:02:52.6]} 10. Be3 {[%clk 0:02:52.4]} 10... Nc6 {[%clk 0:02:49.6]} 11. b4
{[%clk 0:02:47.4]} 11... Ne5 {[%clk 0:02:48.7]} 12. Rc1 {[%clk 0:02:42]} 12...
d6 {[%clk 0:02:44.1]} 13. O-O {[%clk 0:02:40.7]} 13... Be7 {[%clk 0:02:43.5]}
14. Kh1 {[%clk 0:02:39.9]} 14... Rc8 {[%clk 0:02:42.9]} 15. Na4 {[%clk
0:02:37.7]} 15... Ned7 {[%clk 0:02:42]} 16. Qd2 {[%clk 0:02:27.5]} 16... O-O
{[%clk 0:02:36.8]} 17. Rc2 {[%clk 0:02:21.3]} 17... Rfe8 {[%clk 0:02:36.4]} 18.
Rb1 {[%clk 0:02:19.7]} 18... Nh7 {[%clk 0:02:26.1]} 19. Qc1 {[%clk 0:02:18.4]}
19... Qd8 {[%clk 0:02:15]} 20. Nb2 {[%clk 0:02:05.3]} 20... Nhf6 {[%clk
0:02:13.6]} 21. Nd3 {[%clk 0:02:04.9]} 21... Qc7 {[%clk 0:02:12]} 22. Nb3 {[%clk
0:02:03.8]} 22... Bf8 {[%clk 0:01:58.9]} 23. a4 {[%clk 0:02:01]} 23... Qd8
{[%clk 0:01:58.5]} 24. a5 {[%clk 0:01:57.7]} 24... bxa5 {[%clk 0:01:55.8]} 25.
Nxa5 {[%clk 0:01:56.9]} 25... Ba8 {[%clk 0:01:55.7]} 26. Ra1 {[%clk 0:01:52.6]}
26... Qc7 {[%clk 0:01:45.9]} 27. Raa2 {[%clk 0:01:02.9]} 27... Qb8 {[%clk
0:01:38.3]} 28. c5 {[%clk 0:00:57.2]} 28... d5 {[%clk 0:01:19.1]} 29. c6 {[%clk
0:00:56.5]} 29... Ne5 {[%clk 0:00:50.3]} 30. c7 {[%clk 0:00:45.1]} 30... Rxc7
{[%clk 0:00:35]} 31. Rxc7 {[%clk 0:00:43.4]} 31... Nxd3 {[%clk 0:00:34.3]} 32.
Bxd3 {[%clk 0:00:43.7]} 32... dxe4 {[%clk 0:00:28.4]} 33. fxe4 {[%clk
0:00:36.6]} 33... Bd6 {[%clk 0:00:25.1]} 34. Ra7 {[%clk 0:00:18.9]} 34... Bxh2
{[%clk 0:00:21.4]} 35. Rxa8 {[%clk 0:00:18.5]} 35... Qg3 {[%clk 0:00:18.9]} 36.
Rxe8+ {[%clk 0:00:15.1]} 36... Nxe8 {[%clk 0:00:19.8]} 37. Bf4 {[%clk
0:00:15.1]} 37... Qxf4 {[%clk 0:00:18.2]} 38. Qxf4 {[%clk 0:00:15.7]} 38... Bxf4
{[%clk 0:00:19.1]} 39. Rc2 {[%clk 0:00:16.1]} 39... Nd6 {[%clk 0:00:18.7]} 40.
Rc6 {[%clk 0:00:15.9]} 40... Kf8 {[%clk 0:00:17.9]} 41. Rxa6 {[%clk 0:00:16.4]}
41... Ke7 {[%clk 0:00:18.4]} 42. b5 {[%clk 0:00:17]} 42... Kd7 {[%clk
0:00:17.8]} 43. b6 {[%clk 0:00:17.5]} 43... Kc8 {[%clk 0:00:17.7]} 44. Ra8+
{[%clk 0:00:17.7]} 44... Kd7 {[%clk 0:00:17]} 45. b7 {[%clk 0:00:17.5]} 45...
Nxb7 {[%clk 0:00:17.3]} 46. Nxb7 {[%clk 0:00:18.4]} 46... Ke7 {[%clk 0:00:18.2]}
47. Nc5 {[%clk 0:00:18.6]} 47... Kf6 {[%clk 0:00:18.4]} 48. Ra7 {[%clk 0:00:19]}
48... Be3 {[%clk 0:00:18.6]} 49. Nd7+ {[%clk 0:00:18.9]} 49... Kg6 {[%clk
0:00:18.5]} 50. Rb7 {[%clk 0:00:19.2]} 50... Bd4 {[%clk 0:00:18.1]} 51. g3
{[%clk 0:00:17.8]} 51... f5 {[%clk 0:00:18.3]} 52. Nf8+ {[%clk 0:00:18]} 52...
Kf6 {[%clk 0:00:17.7]} 53. exf5 {[%clk 0:00:18.4]} 53... exf5 {[%clk 0:00:17.8]}
54. Rd7 {[%clk 0:00:18.9]} 54... Be5 {[%clk 0:00:16.8]} 55. Nh7+ {[%clk
0:00:18.3]} 55... Kg6 {[%clk 0:00:16.6]} 56. Rd5 {[%clk 0:00:18.6]} 56... Bxg3
{[%clk 0:00:15.6]} 57. Bxf5+ {[%clk 0:00:18.2]} 57... Kf7 {[%clk 0:00:15.3]} 58.
Kg2 {[%clk 0:00:18.8]} 58... Bb8 {[%clk 0:00:13.9]} 59. Rb5 {[%clk 0:00:19.7]}
59... Bd6 {[%clk 0:00:13.2]} 60. Rb7+ {[%clk 0:00:19.8]} 60... Kg8 {[%clk
0:00:12.1]} 61. Bg6 {[%clk 0:00:20]} 61... Bf8 {[%clk 0:00:10.5]} 62. Rb8 {[%clk
0:00:20.1]} 62... h5 {[%clk 0:00:10.2]} 63. Rxf8# {[%clk 0:00:21]} 1-0

[Event "*** Titled Tuesday Blitz"]
[Site "Chess.com"]
[Date "2020.04.14"]
[Round "3"]
[White "vanea_03"]
[Black "zabivol_mc"]
[Result "1-0"]
[WhiteElo "2614"]
[BlackElo "2379"]
[TimeControl "180+1"]
[EndTime "10:29:19 PDT"]
[Termination "vanea_03 won by resignation"]

1. c4 {[%clk 0:03:00.9]} 1... Nf6 {[%clk 0:02:59.5]} 2. Nc3 {[%clk 0:02:59.6]}
2... g6 {[%clk 0:02:59.8]} 3. d4 {[%clk 0:02:57.9]} 3... Bg7 {[%clk 0:03:00.2]}
4. e4 {[%clk 0:02:58.5]} 4... O-O {[%clk 0:03:00.5]} 5. Be2 {[%clk 0:02:59.1]}
5... d6 {[%clk 0:03:01.2]} 6. Be3 {[%clk 0:02:59.2]} 6... Nfd7 {[%clk
0:02:50.3]} 7. Nf3 {[%clk 0:02:55.5]} 7... f5 {[%clk 0:02:40.5]} 8. exf5 {[%clk
0:02:41.3]} 8... gxf5 {[%clk 0:02:40.4]} 9. d5 {[%clk 0:02:40.6]} 9... Ne5
{[%clk 0:02:38.9]} 10. Nxe5 {[%clk 0:02:38.5]} 10... dxe5 {[%clk 0:02:38.9]} 11.
O-O {[%clk 0:02:32.5]} 11... f4 {[%clk 0:02:37.7]} 12. Bd2 {[%clk 0:02:31.2]}
12... Nd7 {[%clk 0:02:34.3]} 13. Bf3 {[%clk 0:02:24.6]} 13... Rf6 {[%clk
0:02:07.7]} 14. Ne4 {[%clk 0:02:08.3]} 14... Rh6 {[%clk 0:02:07.4]} 15. Bc3
{[%clk 0:01:59.2]} 15... Nf8 {[%clk 0:01:57.9]} 16. Bg4 {[%clk 0:01:34.2]} 16...
Bxg4 {[%clk 0:01:47.3]} 17. Qxg4 {[%clk 0:01:35.1]} 17... Rg6 {[%clk 0:01:47.5]}
18. Qf3 {[%clk 0:01:30.1]} 18... Qd7 {[%clk 0:01:40.2]} 19. Rfe1 {[%clk
0:01:26.4]} 19... Qf5 {[%clk 0:01:39.1]} 20. Rad1 {[%clk 0:01:17.1]} 20... a5
{[%clk 0:01:35.1]} 21. c5 {[%clk 0:01:14.7]} 21... Raa6 {[%clk 0:01:32.5]} 22.
Nd2 {[%clk 0:00:52.1]} 22... Rh6 {[%clk 0:01:25.9]} 23. Nc4 {[%clk 0:00:46.9]}
23... Ng6 {[%clk 0:01:20.6]} 24. Qe4 {[%clk 0:00:41.6]} 24... Qh5 {[%clk
0:01:19.7]} 25. h3 {[%clk 0:00:37.9]} 25... f3 {[%clk 0:01:14.5]} 26. d6 {[%clk
0:00:32.8]} 26... cxd6 {[%clk 0:00:52.7]} 27. cxd6 {[%clk 0:00:33.7]} 27... exd6
{[%clk 0:00:43.9]} 28. Rxd6 {[%clk 0:00:24.5]} 28... Nf4 {[%clk 0:00:34.9]} 29.
Rd8+ {[%clk 0:00:20]} 29... Bf8 {[%clk 0:00:34.4]} 30. Nxe5 {[%clk 0:00:13.2]}
30... Nxh3+ {[%clk 0:00:25.8]} 31. gxh3 {[%clk 0:00:13.4]} 31... Qxh3 {[%clk
0:00:25]} 32. Rxf8+ {[%clk 0:00:11.7]} 32... Kxf8 {[%clk 0:00:24.4]} 33. Qxf3+
{[%clk 0:00:09.3]} 33... Qxf3 {[%clk 0:00:22.3]} 34. Nxf3 {[%clk 0:00:10.2]}
34... Rag6+ {[%clk 0:00:22.3]} 35. Kf1 {[%clk 0:00:07.2]} 35... Rh1+ {[%clk
0:00:21.2]} 36. Ke2 {[%clk 0:00:07.8]} 36... Re6+ {[%clk 0:00:21.6]} 37. Be5
{[%clk 0:00:08.3]} 37... Rh5 {[%clk 0:00:21.9]} 38. Kd3 {[%clk 0:00:07.5]} 38...
Ke7 {[%clk 0:00:20.9]} 39. Ke4 {[%clk 0:00:06]} 39... Kd7 {[%clk 0:00:21.3]} 40.
Rd1+ {[%clk 0:00:05.7]} 40... Kc8 {[%clk 0:00:20.1]} 41. Rc1+ {[%clk 0:00:05.5]}
41... Kd7 {[%clk 0:00:19.7]} 42. Rc7+ {[%clk 0:00:05.5]} 42... Ke8 {[%clk
0:00:19.6]} 43. Rxb7 {[%clk 0:00:05.8]} 43... Rh1 {[%clk 0:00:18.1]} 44. Ra7
{[%clk 0:00:04.7]} 44... Rb1 {[%clk 0:00:17.7]} 45. Rxa5 {[%clk 0:00:04.8]}
45... Rxb2 {[%clk 0:00:18.3]} 46. Ra8+ {[%clk 0:00:05]} 46... Ke7 {[%clk
0:00:17.6]} 47. Ra7+ {[%clk 0:00:04.8]} 47... Kd8 {[%clk 0:00:17]} 48. Nd4
{[%clk 0:00:02.6]} 48... Rb4 {[%clk 0:00:16]} 49. Kd5 {[%clk 0:00:02.2]} 49...
Reb6 {[%clk 0:00:14.8]} 50. Nc6+ {[%clk 0:00:02.5]} 50... Rxc6 {[%clk 0:00:15]}
51. Kxc6 {[%clk 0:00:03.4]} 51... Rc4+ {[%clk 0:00:15.5]} 52. Kd5 {[%clk
0:00:03.8]} 52... Rc2 {[%clk 0:00:15.7]} 53. Ra8+ {[%clk 0:00:04.2]} 53... Kd7
{[%clk 0:00:15.3]} 54. Ra7+ {[%clk 0:00:05.1]} 54... Ke8 {[%clk 0:00:15.6]} 55.
Bd4 {[%clk 0:00:06]} 55... Rd2 {[%clk 0:00:15.3]} 56. Rxh7 {[%clk 0:00:06.3]}
56... Rxa2 {[%clk 0:00:14.3]} 57. f4 {[%clk 0:00:06.5]} 57... Ra5+ {[%clk
0:00:14]} 58. Ke4 {[%clk 0:00:06.6]} 58... Ra4 {[%clk 0:00:13.9]} 59. Rb7 {[%clk
0:00:05.2]} 1-0

[Event "*** Titled Tuesday Blitz"]
[Site "Chess.com"]
[Date "2020.04.14"]
[Round "3"]
[White "dmvlad"]
[Black "asimali1977"]
[Result "1-0"]
[WhiteElo "2285"]
[BlackElo "1968"]
[TimeControl "180+1"]
[EndTime "10:29:20 PDT"]
[Termination "dmvlad won on time"]

1. e4 {[%clk 0:03:00.9]} 1... g6 {[%clk 0:02:59.3]} 2. d4 {[%clk 0:02:59.9]}
2... Bg7 {[%clk 0:02:59.1]} 3. Nc3 {[%clk 0:03:00.4]} 3... c5 {[%clk 0:02:58.6]}
4. Be3 {[%clk 0:02:59.1]} 4... Nc6 {[%clk 0:02:56.8]} 5. d5 {[%clk 0:02:56.6]}
5... Nd4 {[%clk 0:02:56]} 6. Qd2 {[%clk 0:02:54.6]} 6... d6 {[%clk 0:02:53.8]}
7. Nd1 {[%clk 0:02:43.9]} 7... Bd7 {[%clk 0:02:40.5]} 8. a4 {[%clk 0:02:42]}
8... f5 {[%clk 0:02:18.5]} 9. f3 {[%clk 0:02:37.3]} 9... Nf6 {[%clk 0:01:56.1]}
10. Bd3 {[%clk 0:02:09.4]} 10... fxe4 {[%clk 0:01:51.6]} 11. fxe4 {[%clk
0:02:08.7]} 11... Ng4 {[%clk 0:01:41.1]} 12. h3 {[%clk 0:01:59.5]} 12... Nxe3
{[%clk 0:01:37.4]} 13. Qxe3 {[%clk 0:02:00.4]} 13... c4 {[%clk 0:01:29.9]} 14.
Ne2 {[%clk 0:01:47]} 14... Qb6 {[%clk 0:01:20.3]} 15. a5 {[%clk 0:01:33.7]}
15... Qc5 {[%clk 0:01:09.4]} 16. c3 {[%clk 0:00:53.8]} 16... Nb3 {[%clk
0:01:02.9]} 17. Qxc5 {[%clk 0:00:49.8]} 17... dxc5 {[%clk 0:01:00.9]} 18. Ra3
{[%clk 0:00:38.4]} 18... cxd3 {[%clk 0:01:00.3]} 19. Rxb3 {[%clk 0:00:36.1]}
19... dxe2 {[%clk 0:01:00]} 20. Ne3 {[%clk 0:00:36.5]} 20... b5 {[%clk
0:00:53.5]} 21. Kxe2 {[%clk 0:00:29.6]} 21... O-O {[%clk 0:00:46.2]} 22. Rd1
{[%clk 0:00:27.9]} 22... Rf7 {[%clk 0:00:42.4]} 23. Rf1 {[%clk 0:00:23.8]} 23...
Raf8 {[%clk 0:00:39.8]} 24. Rxf7 {[%clk 0:00:23.3]} 24... Rxf7 {[%clk
0:00:39.7]} 25. Ra3 {[%clk 0:00:20.1]} 25... a6 {[%clk 0:00:35.9]} 26. Ra1
{[%clk 0:00:20]} 26... Be5 {[%clk 0:00:32.8]} 27. Rd1 {[%clk 0:00:19.3]} 27...
Kg7 {[%clk 0:00:29.4]} 28. Kd3 {[%clk 0:00:14.9]} 28... Rf2 {[%clk 0:00:24.6]}
29. Rd2 {[%clk 0:00:13.1]} 29... c4+ {[%clk 0:00:23.2]} 30. Kc2 {[%clk
0:00:12.9]} 30... Rxd2+ {[%clk 0:00:17.7]} 31. Kxd2 {[%clk 0:00:13.8]} 31... Bf4
{[%clk 0:00:16.8]} 32. Ke2 {[%clk 0:00:14.2]} 32... Bxe3 {[%clk 0:00:15.4]} 33.
Kxe3 {[%clk 0:00:15.1]} 33... Kf6 {[%clk 0:00:15.1]} 34. Kd4 {[%clk 0:00:15]}
34... g5 {[%clk 0:00:13.7]} 35. e5+ {[%clk 0:00:10.9]} 35... Kg7 {[%clk
0:00:11.5]} 36. e6 {[%clk 0:00:08.9]} 36... Be8 {[%clk 0:00:10]} 37. Ke5 {[%clk
0:00:09.4]} 37... h5 {[%clk 0:00:09.4]} 38. g3 {[%clk 0:00:08.7]} 38... g4
{[%clk 0:00:08.9]} 39. hxg4 {[%clk 0:00:07.3]} 39... hxg4 {[%clk 0:00:08.8]} 40.
Kf5 {[%clk 0:00:07.3]} 40... Bg6+ {[%clk 0:00:07.8]} 41. Kxg4 {[%clk 0:00:07.6]}
41... Kf6 {[%clk 0:00:07.4]} 42. Kf4 {[%clk 0:00:08.3]} 42... Be8 {[%clk
0:00:06.6]} 43. g4 {[%clk 0:00:07.9]} 43... Bg6 {[%clk 0:00:05.9]} 44. g5+
{[%clk 0:00:08]} 44... Kg7 {[%clk 0:00:05.2]} 45. Ke5 {[%clk 0:00:08.6]} 45...
Kf8 {[%clk 0:00:04.4]} 46. d6 {[%clk 0:00:08.2]} 46... exd6+ {[%clk 0:00:04.2]}
47. Kxd6 {[%clk 0:00:09.1]} 47... Ke8 {[%clk 0:00:04.2]} 48. Kc7 {[%clk
0:00:08.1]} 48... Ke7 {[%clk 0:00:03.2]} 49. Kb7 {[%clk 0:00:08.7]} 49... Kxe6
{[%clk 0:00:02.8]} 50. Kxa6 {[%clk 0:00:09.2]} 50... Be8 {[%clk 0:00:02.3]} 51.
Kb6 {[%clk 0:00:09.1]} 1-0

[Event "*** Titled Tuesday Blitz"]
[Site "Chess.com"]
[Date "2020.04.14"]
[Round "3"]
[White "sganerdene"]
[Black "Indianlad"]
[Result "0-1"]
[WhiteElo "2680"]
[BlackElo "2970"]
[TimeControl "180+1"]
[EndTime "10:29:23 PDT"]
[Termination "Indianlad won by resignation"]

1. e4 {[%clk 0:03:00.9]} 1... c5 {[%clk 0:03:00.7]} 2. Nf3 {[%clk 0:03:01.3]}
2... d6 {[%clk 0:03:01.5]} 3. d4 {[%clk 0:03:01.8]} 3... cxd4 {[%clk 0:03:02.4]}
4. Nxd4 {[%clk 0:03:02.5]} 4... Nf6 {[%clk 0:03:03.2]} 5. Nc3 {[%clk 0:03:02.1]}
5... a6 {[%clk 0:03:03.9]} 6. Be3 {[%clk 0:03:02.5]} 6... e5 {[%clk 0:03:04.3]}
7. Nb3 {[%clk 0:03:02.7]} 7... Be6 {[%clk 0:03:05]} 8. h3 {[%clk 0:03:03.2]}
8... b5 {[%clk 0:02:57.8]} 9. Qf3 {[%clk 0:03:03]} 9... b4 {[%clk 0:02:50.9]}
10. Nd5 {[%clk 0:03:02.6]} 10... Bxd5 {[%clk 0:02:50.8]} 11. exd5 {[%clk
0:03:02.7]} 11... Nbd7 {[%clk 0:02:50.3]} 12. O-O-O {[%clk 0:03:00.1]} 12... a5
{[%clk 0:02:48.1]} 13. Bb5 {[%clk 0:02:58.9]} 13... a4 {[%clk 0:02:48.2]} 14.
Nd2 {[%clk 0:02:59.1]} 14... Be7 {[%clk 0:02:44.3]} 15. Bc6 {[%clk 0:02:59]}
15... O-O {[%clk 0:02:41.7]} 16. g4 {[%clk 0:02:55.3]} 16... e4 {[%clk
0:02:35.2]} 17. Nxe4 {[%clk 0:02:46.9]} 17... Ne5 {[%clk 0:02:35.3]} 18. Nxf6+
{[%clk 0:02:46.3]} 18... Bxf6 {[%clk 0:02:36.2]} 19. Qe4 {[%clk 0:02:43.4]}
19... b3 {[%clk 0:02:36.9]} 20. Bxa8 {[%clk 0:02:20.3]} 20... Qxa8 {[%clk
0:02:27.3]} 21. cxb3 {[%clk 0:02:19]} 21... axb3 {[%clk 0:02:22.3]} 22. a3
{[%clk 0:02:18.1]} 22... Nc4 {[%clk 0:02:22.8]} 23. Bd4 {[%clk 0:01:56.9]} 23...
Rc8 {[%clk 0:02:07.6]} 24. Kb1 {[%clk 0:01:32.5]} 24... Nxa3+ {[%clk 0:01:11.4]}
25. bxa3 {[%clk 0:01:32.1]} 25... Qxa3 {[%clk 0:01:12.1]} 26. Rd2 {[%clk
0:01:28.9]} 26... b2 {[%clk 0:01:01.7]} 27. Rxb2 {[%clk 0:01:15.3]} 27... Ra8
{[%clk 0:00:58.6]} 28. Bxf6 {[%clk 0:01:08.9]} 28... gxf6 {[%clk 0:00:58.6]} 29.
Rb4 {[%clk 0:00:27]} 29... Qa2+ {[%clk 0:00:43.8]} 30. Kc1 {[%clk 0:00:24.8]}
30... Rc8+ {[%clk 0:00:37.8]} 31. Kd1 {[%clk 0:00:24.7]} 31... Qxf2 {[%clk
0:00:29.5]} 32. Qf5 {[%clk 0:00:20.6]} 32... Qc5 {[%clk 0:00:24.6]} 33. Rb1
{[%clk 0:00:13]} 33... Qd4+ {[%clk 0:00:25]} 34. Ke2 {[%clk 0:00:12.5]} 34...
Re8+ {[%clk 0:00:23.6]} 35. Kf1 {[%clk 0:00:12.8]} 35... Re4 {[%clk 0:00:20.5]}
36. Kg2 {[%clk 0:00:10.5]} 36... Re2+ {[%clk 0:00:19.1]} 37. Kg3 {[%clk
0:00:10]} 37... Re5 {[%clk 0:00:13.8]} 38. Rb8+ {[%clk 0:00:08.8]} 38... Kg7
{[%clk 0:00:14.2]} 39. Qf2 {[%clk 0:00:05.3]} 39... Re3+ {[%clk 0:00:14.5]} 40.
Kg2 {[%clk 0:00:03.4]} 40... Qe4+ {[%clk 0:00:15]} 41. Kg1 {[%clk 0:00:02.4]}
41... Re1+ {[%clk 0:00:14.9]} 42. Qxe1 {[%clk 0:00:01.8]} 42... Qxe1+ {[%clk
0:00:15.8]} 43. Kg2 {[%clk 0:00:02.1]} 43... Qe2+ {[%clk 0:00:16.4]} 44. Kg3
{[%clk 0:00:02.3]} 44... Qe3+ {[%clk 0:00:16.2]} 45. Kg2 {[%clk 0:00:02.4]}
45... Qe4+ {[%clk 0:00:16.7]} 46. Kg3 {[%clk 0:00:02.8]} 46... Qe5+ {[%clk
0:00:17.2]} 47. Kg2 {[%clk 0:00:03]} 47... Qe4+ {[%clk 0:00:17.9]} 48. Kh2
{[%clk 0:00:03.1]} 48... Qe5+ {[%clk 0:00:15.6]} 49. Kg2 {[%clk 0:00:03.4]}
49... Qxd5+ {[%clk 0:00:16.5]} 50. Kh2 {[%clk 0:00:03.9]} 50... Qe5+ {[%clk
0:00:16.2]} 51. Kg2 {[%clk 0:00:03.8]} 51... Qe4+ {[%clk 0:00:16.7]} 52. Kh2
{[%clk 0:00:03.8]} 52... Qe2+ {[%clk 0:00:16.1]} 53. Kg3 {[%clk 0:00:03.9]}
53... d5 {[%clk 0:00:16]} 54. Rhb1 {[%clk 0:00:03.5]} 54... d4 {[%clk
0:00:16.1]} 55. R8b2 {[%clk 0:00:04]} 55... Qe3+ {[%clk 0:00:16.3]} 56. Kg2
{[%clk 0:00:04.3]} 56... Qe4+ {[%clk 0:00:16.2]} 57. Kf2 {[%clk 0:00:03.8]}
57... d3 {[%clk 0:00:16.5]} 58. Kg3 {[%clk 0:00:03.2]} 58... Qe3+ {[%clk
0:00:16.2]} 59. Kh2 {[%clk 0:00:03.1]} 59... d2 {[%clk 0:00:16.8]} 60. Kg2
{[%clk 0:00:02.3]} 60... Qe2+ {[%clk 0:00:17.1]} 61. Kg3 {[%clk 0:00:02.8]}
61... d1=Q {[%clk 0:00:17.6]} 62. Rxe2 {[%clk 0:00:03.6]} 62... Qxe2 {[%clk
0:00:16.9]} 0-1